Cogmind - Beta 14 @@@ ROGUE MODE // 2024.09.02 @ 18:12:38 Player: jimmyl Result: Destroyed by 4Y-C9V(R) with Subdweller Beam Cannon Performance ------------- Evolutions (0) 0 Regions Visited (2) 400 Robots Destroyed (14) 70 Value Destroyed (362) 362 Prototype IDs (0) 0 Alien Tech Used (0) 0 Bonus (0) 0 TOTAL SCORE: 832 Bonus ------- None Cogmind --------- Core Integrity 0/250 Matter 184/300 Energy 100/100 System Corruption 0% Temperature Cool (9) Movement Treading (160) Location -10/Subcaves Parts ------- > --- POWER (1) -------- Subdweller Power Source > --- PROPULSION (2) --- Light Treads Spiked Treads > --- UTILITY (2) ------ Small Storage Unit Structural Scanner > --- WEAPON (2) ------- Battle Rifle Battle Cannon > --- INVENTORY (8) ---- Ion Engine Light Treads Wheel Wheel Light Armor Plating Subdweller Machine Gun Peak State ------------ > --- POWER ------------ Subdweller Power Source > --- PROPULSION ------- Light Treads Spiked Treads > --- UTILITY ---------- Small Storage Unit Structural Scanner > --- WEAPON ----------- Battle Rifle Battle Cannon > --- INVENTORY -------- Ion Engine Light Treads Wheel Wheel Light Armor Plating Subdweller Machine Gun [Rating: 11] Favorites ----------- Power Light Ion Engine Engine Light Ion Engine Propulsion Aluminum Leg Treads Light Treads Leg Aluminum Leg Utility Small Storage Unit Device Structural Scanner Storage Small Storage Unit Protection Light Armor Plating Weapon Assault Rifle Energy Gun Small Laser Ballistic Gun Assault Rifle Ballistic Cannon Battle Cannon Build | -11 -10 -10 ------- Run | Yrd Mat Sub Slots Evolved . | . . . Power . | . . . Propulsion . | . . . Utility . | . . . Weapon . | . . . Parts Attached 11 | . 1 10 Power 1 | . . 1 Engine 1 | . . 1 Core . | . . . Reactor . | . . . Propulsion 3 | . . 3 Treads 3 | . . 3 Leg . | . . . Wheel . | . . . Hover . | . . . Flight . | . . . Utility 3 | . 1 2 Device 2 | . 1 1 Storage . | . . . Processor . | . . . Hackware . | . . . Protection 1 | . . 1 Artifact . | . . . Weapon 4 | . . 4 Energy Gun . | . . . Energy Cannon . | . . . Ballistic Gun 3 | . . 3 Ballistic Cannon 1 | . . 1 Launcher . | . . . Special Weapon . | . . . Impact Weapon . | . . . Slashing Weapon . | . . . Piercing Weapon . | . . . Special Melee Weapon . | . . . Unidentified Prototypes . | . . . Parts Lost 2 | . . 2 Power 1 | . . 1 Propulsion . | . . . Utility . | . . . Weapon 1 | . . 1 Highest Loss Streak 2 | . . 2 To Critical Strikes . | . . . Average Slot Usage (%) 99 | . 99 99 Engine 13 | . 14 13 Treads 9 | . . 20 Leg 18 | . 28 7 Device 13 | . 13 13 Storage 14 | . 14 14 Energy Gun 7 | . 14 . Ballistic Gun 16 | . 14 18 Ballistic Cannon 4 | . . 8 Peak Build Rating 11 | . 7 11 Average Rating 8 | . 6 10 On Entrance 6 | 6 6 7 Naked Turns . | . . . Heaviest Build 17 | 11 12 17 Greatest Support 40 | 20 20 40 Greatest Overweight (x) . | . . . Average Overweight (x) . | . . . Largest Inventory Capacity 8 | . 8 8 Average Capacity 8 | . 8 8 Most Carried 7 | . 7 7 Average Carried 6 | . 6 5 Final Capacity 8 | 8 8 8 Final Carried 7 | 6 7 6 Class Distribution -------------------- 100% | Mutant Dominant Class ---------------- Mutant | -10/Materials Mutant | -10/Subcaves Resources | -11 -10 -10 ----------- Run | Yrd Mat Sub Matter Collected 505 | 200 17 288 Remotely . | . . . Salvage Created 362 | . 90 272 Parts 29 | . 13 16 Haulers Intercepted . | . . . Recyclers Shooed . | . . . Parts Field Recycled . | . . . Retrieved Matter . | . . . Parts Self-Destructed 7 | . . 7 Prevented . | . . . Kills | -11 -10 -10 ------- Run | Yrd Mat Sub Combat Hostiles Destroyed 13 | . 6 7 Guns 11 | . 6 5 Cannons 2 | . . 2 Classes Destroyed 5 | . 2 3 Watcher 1 | . 1 . Swarmer 6 | . 6 . Grunt 2 | . . 2 Sentry 1 | . . 1 Subdweller 4 | . . 4 Best Kill Streak 3 | . 3 2 Combat Bots Only 3 | . 3 2 Max Kills in Single Turn 2 | . 2 1 Gunslinging 1 | . 1 . Exploded . | . . . Melee . | . . . Uniques/NPCs Destroyed . | . . . Combat | -11 -10 -10 -------- Run | Yrd Mat Sub Hostile Shots Fired 71 | . 14 57 Missed 10 | . 4 6 Damage Taken 994 | . 80 914 Core 262 | . 19 243 Absorbed by Shields . | . . . Core Remaining (%) 100 | 100 . . Volleys Fired 61 | . 7 54 Largest 2 | . 2 2 Hottest 64 | . 60 64 Shots Fired 102 | . 14 88 Gun 69 | . 14 55 Cannon 33 | . . 33 Launcher . | . . . Special . | . . . Kinetic 87 | . 7 80 Thermal 15 | . 7 8 Explosive . | . . . Electromagnetic . | . . . Robot Hit Streak 22 | . 4 22 Robot Miss Streak 3 | . 1 3 Penetration Max . | . . . Secondary Targets 2 | . 1 1 Max Gunslinging Chain 1 | . 1 1 Shots Hit Robots 64 | . 10 54 Core Hits 23 | . 7 16 Critical Kills . | . . . Critical Parts Destroyed . | . . . Critical Strikes . | . . . Melee Attacks . | . . . Impact . | . . . Slashing . | . . . Piercing . | . . . Sneak Attacks . | . . . Combat Hostiles . | . . . Follow-up Attacks . | . . . Damage Inflicted 947 | . 125 822 Guns 699 | . 125 574 Cannons 248 | . . 248 Explosions . | . . . Melee . | . . . Ramming . | . . . Kinetic 828 | . 60 768 Thermal 119 | . 65 54 Explosive . | . . . Electromagnetic . | . . . Impact . | . . . Slashing . | . . . Piercing . | . . . Highest Corruption . | . . . Average Corruption . | . . . Corruption Purged . | . . . Corruption Blocked . | . . . Overload Shots . | . . . Overflow Damage . | . . . Projectiles . | . . . Explosions . | . . . Melee . | . . . Knockbacks 5 | . . 5 Impact . | . . . Kinetic 4 | . . 4 Secondary 1 | . . 1 Self-Inflicted Damage . | . . . Shots . | . . . Rammed . | . . . Targets Rammed 2 | . 2 . Kicked 2 | . 2 . Crushed . | . . . Highest Temperature . | . . . Average Temperature . | . . . Received Heat Transfer 306 | . . 306 Siege Activations . | . . . Robots Corrupted . | . . . Combat Hostiles . | . . . Parts Fried . | . . . Impact Corruptions . | . . . Robots Melted . | . . . Combat Hostiles . | . . . Parts Melted . | . . . Heat Transferred 275 | . 150 125 Parts Sabotaged . | . . . Parts Stolen . | . . . Parts Stripped . | . . . Power Chain Reactions . | . . . Alert | -11 -10 -10 ------- Run | Yrd Mat Sub Peak Influence 192 | . 192 . Initial . | . . . Average 52 | . 52 . Maximum Alert Level . | . . . Low Security (%) 100 | . 100 . Level 1 . | . . . Level 2 . | . . . Level 3 . | . . . Level 4 . | . . . Level 5 . | . . . High Security . | . . . Max Security . | . . . Squads Dispatched . | . . . Investigation . | . . . Extermination . | . . . Reinforcement . | . . . Assault . | . . . Garrison . | . . . Intercept . | . . . Searches Triggered . | . . . Construction Impeded . | . . . Haulers Reinforced . | . . . Active Scanning Responses . | . . . Cargo Convoy Interrupts . | . . . Stealth | -11 -10 -10 --------- Run | Yrd Mat Sub Distress Signals . | . . . Communications Jammed . | . . . Distress Signals . | . . . Times Spotted 18 | . 9 9 Peak Tracking Total 3 | . 3 2 Tactical Retreats . | . . . Traps | -11 -10 -10 ------- Run | Yrd Mat Sub Traps Triggered . | . . . Indirectly . | . . . Trap Hack Attempts . | . . . Triggered . | . . . Disarmed . | . . . Reprogrammed . | . . . Reused . | . . . Traps Extracted . | . . . Installed . | . . . Triggered . | . . . Machines | -11 -10 -10 ---------- Run | Yrd Mat Sub Machines Disabled . | . . . Max in Single Turn . | . . . Machines Repaired . | . . . Machines Dismantled . | . . . Machines Sabotaged . | . . . Overloaded Fab Kills . | . . . Hacking | -11 -10 -10 --------- Run | Yrd Mat Sub Machines Accessed . | . . . Terminals . | . . . Fabricators . | . . . Repair Stations . | . . . Recycling Units . | . . . Scanalyzers . | . . . Garrison Access . | . . . Total Hacks . | . . . Successful . | . . . Failed . | . . . Catastrophic . | . . . Database Lockouts . | . . . Manual . | . . . Terminals . | . . . Fabricators . | . . . Repair Stations . | . . . Recycling Units . | . . . Scanalyzers . | . . . Garrison Access . | . . . Terminal Hacks . | . . . Fabricator Hacks . | . . . Repair Station Hacks . | . . . Recycling Unit Hacks . | . . . Scanalyzer . | . . . Garrison Access Hacks . | . . . Unauthorized Hacks . | . . . Terminals . | . . . Fabricators . | . . . Repair Stations . | . . . Recycling Units . | . . . Scanalyzers . | . . . Garrison Access . | . . . Data Cores Recovered . | . . . Used . | . . . Hacking Detections . | . . . Full Trace Events . | . . . Feedback Events . | . . . Feedback Blocked . | . . . Robot Schematics Acquired . | . . . Robots Built . | . . . Authchips . | . . . Time . | . . . Total Robot Build Rating . | . . . Part Schematics Acquired . | . . . Parts Built . | . . . Authchips . | . . . Time . | . . . Total Part Build Rating . | . . . Parts Repaired . | . . . Time . | . . . Parts Recycled . | . . . Recycled Matter . | . . . Retrieved Matter . | . . . Retrieved Components . | . . . Parts Scanalyzed . | . . . Part Schematics Acquired . | . . . Parts Damaged . | . . . Bothacking | -11 -10 -10 ------------ Run | Yrd Mat Sub Used RIF Installer . | . . . Robots Hacked . | . . . Non-combat . | . . . Combat . | . . . Robot Hacks Applied . | . . . Relay Couplers Released . | . . . Fabnet Peak Effective % . | . . . Robots Rewired . | . . . Allies Hacked . | . . . Hacks Repelled . | . . . Allies | -11 -10 -10 -------- Run | Yrd Mat Sub Total Allies . | . . . Largest Group . | . . . Highest-Rated Group . | . . . Highest-Rated Ally . | . . . Total Orders . | . . . Ally Attacks . | . . . Total Damage . | . . . Kills . | . . . Allies Corrupted . | . . . Allies Melted . | . . . Intel | -11 -10 -10 ------- Run | Yrd Mat Sub Robot Analysis Total . | . . . Derelict Logs Recovered . | . . . Drone Launches . | . . . Drone Recoveries . | . . . Exploration | -11 -10 -10 ------------- Run | Yrd Mat Sub Turns Passed 1707 | . 895 812 Spaces Moved 801 | 1 384 416 Core . | . . . Treads 300 | . . 300 Legs 501 | 1 384 116 Wheels . | . . . Hover . | . . . Flight . | . . . Fastest Speed 120 | 120 120 120 Average Speed 134 | 120 120 148 Slowest Speed 160 | 120 120 160 Overloaded Moves . | . . . Propulsion Burnouts . | . . . Robots Hopped . | . . . Cave-ins Triggered . | . . . Exploration Rate (%) 34 | 2 69 33 Regions Visited 2 Branch Regions 1 Pre-discovered Areas . | . . . Known Exits Taken . | . . . Unknown Exits Taken 2 | 1 1 . Scrap Searched 4 | . . 4 Spaces Dug . | . . . Terrain Destroyed . | . . . Melee . | . . . Projectile . | . . . AOE . | . . . Terrain Rammed . | . . . Walls Destroyed . | . . . Machines Disabled . | . . . Actions | -11 -10 -10 --------- Run | Yrd Mat Sub Total 1326 | . 803 523 Wait 444 | . 409 35 Move 799 | . 383 416 Hop . | . . . Pick Up 5 | . 1 4 Fast Attach 2 | . 1 1 Attach 5 | . . 5 Detach . | . . . Swap 4 | . . 4 Drop 4 | . . 4 Fire 61 | . 7 54 Melee . | . . . Ram . | . . . Kick 2 | . 2 . Crush . | . . . Escape Stasis . | . . . Rewire . | . . . Trap . | . . . Miscellaneous . | . . . Route ------- -11/Scrapyard -10/Materials (discovered 4 exits: [*Mat x2] / [*Min] / [*Sub]) -10/Subcaves (discovered 2 exits: [*Mat] / [Rec]) History --------- Turn | Location | Event 1 | -11/Scrapyard | Discovered new exit (range 0) 1 | -11/Scrapyard | Entered Materials 110 | -10/Materials | Discovered new exit (range 5) 235 | -10/Materials | Discovered new exit (range 4) 317 | -10/Materials | Build established: Mutant 362 | -10/Materials | Discovered new exit (range 8) 728 | -10/Materials | Discovered new exit (range 11) 896 | -10/Materials | Entered Subcaves 940 | -10/Subcaves | Shifting Twisted Machinery released Sub. Power Source 960 | -10/Subcaves | Shifting Twisted Machinery released Battle Rifle 1041 | -10/Subcaves | Shifting Twisted Machinery released Sub. Machine Gun 1048 | -10/Subcaves | Shifting Twisted Machinery released Battle Cannon 1064 | -10/Subcaves | Discovered new exit (range 13) 1088 | -10/Subcaves | Core integrity fell below 50% 1399 | -10/Subcaves | Discovered new exit (range 13) 1694 | -10/Subcaves | Ambushed by Subdwellers from Twisted Machinery 1705 | -10/Subcaves | Core integrity fell below 20% 1708 | -10/Subcaves | Destroyed by 4Y-C9V(R) with Subdweller Beam Cannon Last Messages --------------- down. 01348_ I8-BAN(O) collects matter. 01366_ MQ-EK8(R) knocked back. 01369_ ES-XBV(R) knocked back. 01372_ ES-XBV(R) destroyed. 01375_ MQ-EK8(R) knocked back. 01376_ I8-BAN(O) collects matter. 01383_ MQ-EK8(R) destroyed. 01392_ Acquired 12 matter. 01397_ Acquired 2 matter. 01399_ EXIT=FOUND 01519_ UT-PES(u) tweaks Twisted Machinery. 01520_ Acquired 15 matter. 01528_ UT-PES(u) builds Twisted Machinery. 01596_ Y-45 Defender destroyed. 01599_ Acquired 41 matter. 01605_ Beam Rifle fries itself beyond repair. 01607_ Lgt. Treads fries itself beyond repair. 01631_ Acquired 15 matter. 01639_ Acquired 9 matter. Map ----- +----------------------------------------------------+ | ?????????????????????????????????????????????????? | | ?????????????????????????????????????????????????? | | ?????????????????????????????????????????????????? | | ?????????????????????????????????????????????????? | | ?????????????????????????????????????????????????? | | ?????????????????????????????????????????????????? | | ?????????????????????????????????????????????????? | | ?????????????????????????????????????????????????? | | ?????????????????????????????????????????????????? | | ?????????????????????????????????????????????????? | | ?????????????????????????????????????????????????? | | ?????????????????????????????????????????????????? | | ???????????????????????? "???????????????????????? | | ???????????????????????? ???????????????????????? | | ???????????????????????? " #####???????????????? | | ???????????????????????? "" ###### ?????????????? | | ???????????????????????? """" ##" ?????????????? | | ???????????????????????? """ " ?????????????? | | ?????????????????????????& "" "??????????????? | | ????????????????????????#%! "" ????? ##????????? | | ????????????????????????##[ "" ?????? ###???????? | | ????????????????????????##" =##????? ###???????? | | ????????????????????????## ##????" ##???????? | | ???????????????????????### %###"##" ###???????? | | ???????????????????????###RR ######"" ###???????? | | ???????????????????????##@ # ### " ##???????? | | ???????????????????????### % " ###???????? | | ???????????????????????### "####????????? | | ????????????????????????### ###??????????? | | ????????????????????????###### ####?????????? | | ??????????????????????######### ####????????? | | ??????????????????????#####?### ###????????? | | ??????????????????????## #### % ##????????? | | ??????????????????????## %### ### ##????????? | | ??????????????????????## ## ########????????? | | ??????????????????????## ######????????? | | ??????????????????????## ####??????????? | | ??????????????????????## ## #####?????????? | | ???????????????????########### # ####????????? | | ??????????????????########### ## ###????????? | | ??????????????????### #### # ###???????? | | ??????????????????## ###???????? | | ??????????????????## ##???????? | | ??????????????????## #### ##% # ###???????? | | ??????????????????### ########## ###???????? | | ??????????????????### ### ######### ###???????? | | ???????????????????## ### ### ##### %##???????? | | ???????????????????### ##### ##???????? | | ???????????????????#### ##### ##???????? | | ????????????????????#### #### ###???????? | +----------------------------------------------------+ Best States ------------- Heat Dissipation 25 Energy Generation 15 Energy Capacity 200 Matter Stores 300 Matter Capacity 300 Sight Range 16 Terrain Scan Density 10 Armor Coverage 150 Evasion (%) 55 Recoil Reduction 2 Item Schematics ----------------- None Robot Schematics ------------------ None Fabricated ------------ Nothing Alien Tech Used ----------------- None Achievements -------------- None Challenges ------------ None Game ------ Seed MagneticThunderBallwheel Manual? 0 Play Time 00:07:48 Cumulative 121.1 hours Start 2024.09.02 @ 18:04:20 End 2024.09.02 @ 18:12:38 Sessions 1 Manual Loads 0 Difficulty Rogue Special Mode None Game No. 198 Rogue 197 Adventurer 1 Explorer 0 Win Type - Total 1 Types 1/0/0/0/0/0/0/0/0 Lore% 63 Gallery% 66 Achievement% 50 Wizard Run 0 Options --------- Layout 1 ASCII 0 Keyboard 0 Movement Mouse Keybinds 0 Fullscreen 2 Font 20/SmallcapsGlow Map View 54x42 Zoom Use 0% Tactical HUD 1 Map Filters NONE Filters NONE Steam 0 RUN: ecaa2ea4-5f57-474f-af88-01a556fa2abc